[Event "Titled Tuesday Blitz May 30 Early 2023"]
[White "Mazurkiewicz, Michal"]
[Black "Korchmar, Vasiliy"]
[WhiteFideId "1124943"]
[BlackFideId "24131750"]
[WhiteElo "2054"]
[BlackElo "2370"]
[Result "1-0"]
[Round "11"]
[TimeControl "180+2"]
[Date "2023.05.30"]
[WhiteClock "0:00:04"]
[BlackClock "0:00:01"]

1. e4 {[%clk 0:03:00]}  c5 {[%clk 0:03:00]} 2. Nf3 {[%clk 0:03:00]}  d6 {[%clk 0:03:00]} 3. g3 {[%clk 0:03:00]}  Nc6 {[%clk 0:02:55]} 4. Bg2 {[%clk 0:03:00]}  Nf6 {[%clk 0:02:53]} 5. d3 {[%clk 0:03:00]}  g6 {[%clk 0:02:50]} 6. O-O {[%clk 0:03:00]}  Bg7 {[%clk 0:02:50]} 7. Re1 {[%clk 0:03:01]}  O-O {[%clk 0:02:51]} 8. e5 {[%clk 0:03:01]}  dxe5 {[%clk 0:02:49]} 9. Nxe5 {[%clk 0:03:02]}  Nxe5 {[%clk 0:02:49]} 10. Rxe5 {[%clk 0:03:02]}  Bg4 {[%clk 0:02:36]} 11. Qe1 {[%clk 0:03:02]}  b6 {[%clk 0:02:32]} 12. Rxe7 {[%clk 0:02:41]}  Rc8 {[%clk 0:02:15]} 13. Nc3 {[%clk 0:02:36]}  Be6 {[%clk 0:01:38]} 14. Rxa7 {[%clk 0:02:33]}  Re8 {[%clk 0:01:39]} 15. Qf1 {[%clk 0:02:30]}  b5 {[%clk 0:01:39]} 16. Nxb5 {[%clk 0:02:23]}  c4 {[%clk 0:01:31]} 17. d4 {[%clk 0:02:02]}  Bd5 {[%clk 0:01:14]} 18. Bg5 {[%clk 0:01:21]}  Qb6 {[%clk 0:00:46]} 19. Bxf6 {[%clk 0:01:15]}  Bxg2 {[%clk 0:00:40]} 20. Qxg2 {[%clk 0:01:14]}  Bxf6 {[%clk 0:00:41]} 21. Rb7 {[%clk 0:01:12]}  Qa6 {[%clk 0:00:38]} 22. c3 {[%clk 0:01:10]}  Re2 {[%clk 0:00:37]} 23. Qd5 {[%clk 0:01:01]}  Rf8 {[%clk 0:00:35]} 24. Nd6 {[%clk 0:00:52]}  Be7 {[%clk 0:00:35]} 25. Nxc4 {[%clk 0:00:36]}  Rd8 {[%clk 0:00:33]} 26. Qf3 {[%clk 0:00:34]}  Qxc4 {[%clk 0:00:31]} 27. a4 {[%clk 0:00:25]}  Rd6 {[%clk 0:00:28]} 28. b3 {[%clk 0:00:19]}  Qa6 {[%clk 0:00:27]} 29. Ra7 {[%clk 0:00:09]}  Qxa7 {[%clk 0:00:17]} 30. Qxe2 {[%clk 0:00:10]}  Re6 {[%clk 0:00:18]} 31. Qf3 {[%clk 0:00:08]}  Rf6 {[%clk 0:00:18]} 32. Qe2 {[%clk 0:00:08]}  Bd6 {[%clk 0:00:12]} 33. a5 {[%clk 0:00:08]}  Kg7 {[%clk 0:00:07]} 34. a6 {[%clk 0:00:08]}  h5 {[%clk 0:00:08]} 35. h4 {[%clk 0:00:06]}  Bc7 {[%clk 0:00:04]} 36. b4 {[%clk 0:00:04]}  g5 {[%clk 0:00:04]} 37. hxg5 {[%clk 0:00:04]}  Rg6 {[%clk 0:00:05]} 38. f4 {[%clk 0:00:04]}  h4 {[%clk 0:00:05]} 39. gxh4 {[%clk 0:00:04]}  Re6 {[%clk 0:00:05]} 40. Qf3 {[%clk 0:00:03]}  Qb6 {[%clk 0:00:03]} 41. a7 {[%clk 0:00:03]}  Qb5 {[%clk 0:00:03]} 42. a8=Q {[%clk 0:00:03]}  Qf5 {[%clk 0:00:04]} 43. Qad5 {[%clk 0:00:02]}  Qc2 {[%clk 0:00:03]} 44. Qxe6 {[%clk 0:00:03]}  fxe6 {[%clk 0:00:03]} 45. Ra7 {[%clk 0:00:04]}  Qc1+ {[%clk 0:00:02]} 46. Qf1 {[%clk 0:00:04]}  Qe3+ {[%clk 0:00:02]} 47. Qf2 {[%clk 0:00:04]}  Qxc3 {[%clk 0:00:03]} 48. b5 {[%clk 0:00:03]}  Kg6 {[%clk 0:00:03]} 49. Qe2 {[%clk 0:00:01]}  Qxd4+ {[%clk 0:00:01]} 50. Qf2 {[%clk 0:00:01]}  Qxf2+ {[%clk 0:00:02]} 51. Kxf2 {[%clk 0:00:02]}  Bb6+ {[%clk 0:00:03]} 52. Kf3 {[%clk 0:00:02]}  Bxa7 {[%clk 0:00:04]} 53. Kg4 {[%clk 0:00:02]}  Bb6 {[%clk 0:00:03]} 54. h5+ {[%clk 0:00:03]}  Kg7 {[%clk 0:00:04]} 55. f5 {[%clk 0:00:04]}  exf5+ {[%clk 0:00:04]} 56. Kxf5 {[%clk 0:00:05]}  Be3 {[%clk 0:00:04]} 57. g6 {[%clk 0:00:04]}  Kh6 {[%clk 0:00:03]} 58. Ke6 {[%clk 0:00:04]}  Bd4 {[%clk 0:00:03]} 59. Kf7 {[%clk 0:00:03]}  Kxh5 {[%clk 0:00:02]} 60. g7 {[%clk 0:00:03]}  Bxg7 {[%clk 0:00:01]} 61. Kxg7 {[%clk 0:00:04]} 1-0


[Site "https://www.chess.com"]

[Event "Titled Tuesday Blitz May 30 Early 2023"]
[White "Martin Alvarez, Inigo"]
[Black "Girya, Olga"]
[WhiteFideId "2259354"]
[BlackFideId "4195752"]
[WhiteElo "2411"]
[BlackElo "2263"]
[Result "0-1"]
[Round "11"]
[TimeControl "180+2"]
[Date "2023.05.30"]
[WhiteClock "0:00:20"]
[BlackClock "0:00:09"]

1. e4 {[%clk 0:03:00]}  e5 {[%clk 0:02:59]} 2. Nf3 {[%clk 0:03:00]}  Nc6 {[%clk 0:03:00]} 3. Bb5 {[%clk 0:03:00]}  a6 {[%clk 0:02:59]} 4. Ba4 {[%clk 0:02:59]}  Nf6 {[%clk 0:03:00]} 5. Qe2 {[%clk 0:02:59]}  Bc5 {[%clk 0:02:59]} 6. O-O {[%clk 0:02:58]}  d6 {[%clk 0:02:58]} 7. c3 {[%clk 0:02:58]}  O-O {[%clk 0:02:54]} 8. h3 {[%clk 0:02:54]}  Re8 {[%clk 0:02:52]} 9. Rd1 {[%clk 0:02:53]}  b5 {[%clk 0:02:46]} 10. Bc2 {[%clk 0:02:51]}  d5 {[%clk 0:02:41]} 11. d3 {[%clk 0:02:48]}  h6 {[%clk 0:02:35]} 12. Nbd2 {[%clk 0:02:48]}  Be6 {[%clk 0:02:25]} 13. Nf1 {[%clk 0:02:47]}  Qe7 {[%clk 0:02:02]} 14. Ng3 {[%clk 0:02:46]}  Rad8 {[%clk 0:02:01]} 15. Nh4 {[%clk 0:02:41]}  dxe4 {[%clk 0:01:37]} 16. dxe4 {[%clk 0:02:35]}  Rxd1+ {[%clk 0:01:36]} 17. Bxd1 {[%clk 0:02:28]}  Bc4 {[%clk 0:01:16]} 18. Qe1 {[%clk 0:02:21]}  Rd8 {[%clk 0:01:07]} 19. Nhf5 {[%clk 0:02:18]}  Qe6 {[%clk 0:01:04]} 20. Be3 {[%clk 0:01:58]}  Bf8 {[%clk 0:00:34]} 21. Bc2 {[%clk 0:01:46]}  Bd3 {[%clk 0:00:33]} 22. Bxd3 {[%clk 0:01:36]}  Rxd3 {[%clk 0:00:34]} 23. Qe2 {[%clk 0:01:36]}  Rd8 {[%clk 0:00:33]} 24. b3 {[%clk 0:01:29]}  h5 {[%clk 0:00:25]} 25. Bg5 {[%clk 0:01:18]}  g6 {[%clk 0:00:23]} 26. Nh4 {[%clk 0:01:03]}  Be7 {[%clk 0:00:23]} 27. Nf3 {[%clk 0:00:58]}  Nh7 {[%clk 0:00:22]} 28. Be3 {[%clk 0:00:48]}  Nf8 {[%clk 0:00:22]} 29. Ng5 {[%clk 0:00:46]}  Bxg5 {[%clk 0:00:22]} 30. Bxg5 {[%clk 0:00:46]}  f6 {[%clk 0:00:22]} 31. Be3 {[%clk 0:00:45]}  h4 {[%clk 0:00:20]} 32. Nf1 {[%clk 0:00:44]}  g5 {[%clk 0:00:20]} 33. Nh2 {[%clk 0:00:42]}  Kg7 {[%clk 0:00:19]} 34. Nf3 {[%clk 0:00:42]}  Ng6 {[%clk 0:00:19]} 35. Rd1 {[%clk 0:00:41]}  Rd7 {[%clk 0:00:17]} 36. Rd3 {[%clk 0:00:39]}  Nce7 {[%clk 0:00:16]} 37. Qd2 {[%clk 0:00:38]}  Rxd3 {[%clk 0:00:16]} 38. Qxd3 {[%clk 0:00:38]}  Qd6 {[%clk 0:00:13]} 39. Qxd6 {[%clk 0:00:38]}  cxd6 {[%clk 0:00:14]} 40. Kf1 {[%clk 0:00:36]}  d5 {[%clk 0:00:14]} 41. Nd2 {[%clk 0:00:32]}  Kf7 {[%clk 0:00:11]} 42. Ke2 {[%clk 0:00:32]}  Ke6 {[%clk 0:00:11]} 43. c4 {[%clk 0:00:29]}  d4 {[%clk 0:00:11]} 44. Bxg5 {[%clk 0:00:28]}  fxg5 {[%clk 0:00:11]} 45. cxb5 {[%clk 0:00:29]}  Nf4+ {[%clk 0:00:11]} 46. Kf1 {[%clk 0:00:28]}  axb5 {[%clk 0:00:12]} 47. Nf3 {[%clk 0:00:27]}  Kf6 {[%clk 0:00:11]} 48. a4 {[%clk 0:00:27]}  bxa4 {[%clk 0:00:11]} 49. bxa4 {[%clk 0:00:28]}  Nc6 {[%clk 0:00:11]} 50. g3 {[%clk 0:00:26]}  hxg3 {[%clk 0:00:11]} 51. fxg3 {[%clk 0:00:26]}  Nxh3 {[%clk 0:00:12]} 52. Kg2 {[%clk 0:00:26]}  g4 {[%clk 0:00:12]} 53. Nh2 {[%clk 0:00:26]}  Kg5 {[%clk 0:00:11]} 54. Nf1 {[%clk 0:00:26]}  Na5 {[%clk 0:00:11]} 55. Nd2 {[%clk 0:00:25]}  Kf6 {[%clk 0:00:11]} 56. Nf1 {[%clk 0:00:23]}  Ng5 {[%clk 0:00:11]} 57. Nd2 {[%clk 0:00:23]}  Ne6 {[%clk 0:00:11]} 58. Kf2 {[%clk 0:00:23]}  Nc5 {[%clk 0:00:11]} 59. Ke2 {[%clk 0:00:23]}  Nxa4 {[%clk 0:00:11]} 60. Kd3 {[%clk 0:00:23]}  Nc3 {[%clk 0:00:11]} 61. Nf1 {[%clk 0:00:22]}  Nb3 {[%clk 0:00:11]} 62. Nd2 {[%clk 0:00:22]}  Nc5+ {[%clk 0:00:11]} 63. Kc2 {[%clk 0:00:22]}  N5xe4 {[%clk 0:00:11]} 64. Nc4 {[%clk 0:00:21]}  Nxg3 {[%clk 0:00:11]} 65. Kd3 {[%clk 0:00:21]}  Nf5 {[%clk 0:00:11]} 66. Na3 {[%clk 0:00:17]}  e4+ {[%clk 0:00:10]} 67. Kd2 {[%clk 0:00:17]}  e3+ {[%clk 0:00:11]} 68. Ke1 {[%clk 0:00:18]}  d3 {[%clk 0:00:10]} 69. Nc4 {[%clk 0:00:18]}  d2+ {[%clk 0:00:11]} 70. Nxd2 {[%clk 0:00:18]}  exd2+ {[%clk 0:00:11]} 71. Kxd2 {[%clk 0:00:18]}  g3 {[%clk 0:00:12]} 72. Ke1 {[%clk 0:00:18]}  Ne4 {[%clk 0:00:12]} 73. Kf1 {[%clk 0:00:18]}  Kg5 {[%clk 0:00:11]} 74. Kg2 {[%clk 0:00:18]}  Kg4 {[%clk 0:00:12]} 75. Kg1 {[%clk 0:00:18]}  Kf3 {[%clk 0:00:12]} 76. Kh1 {[%clk 0:00:18]}  Nd4 {[%clk 0:00:07]} 77. Kg1 {[%clk 0:00:19]}  Ne2+ {[%clk 0:00:08]} 78. Kh1 {[%clk 0:00:19]}  g2+ {[%clk 0:00:08]} 79. Kh2 {[%clk 0:00:19]}  g1=Q+ {[%clk 0:00:09]} 80. Kh3 {[%clk 0:00:20]}  Qg3# {[%clk 0:00:09]} 0-1


[Site "https://www.chess.com"]

[Event "Titled Tuesday Blitz May 30 Early 2023"]
[White "Aradhya, Garg"]
[Black "Sowul, Bartosz"]
[WhiteFideId "25006746"]
[BlackFideId "1137590"]
[WhiteElo "2263"]
[BlackElo "2188"]
[Result "1-0"]
[Round "11"]
[TimeControl "180+2"]
[Date "2023.05.30"]
[WhiteClock "0:01:16"]
[BlackClock "0:00:15"]

1. d4 {[%clk 0:03:00]}  Nf6 {[%clk 0:03:00]} 2. c4 {[%clk 0:03:01]}  c5 {[%clk 0:03:00]} 3. dxc5 {[%clk 0:03:00]}  e6 {[%clk 0:03:00]} 4. Be3 {[%clk 0:02:59]}  Na6 {[%clk 0:02:56]} 5. Nc3 {[%clk 0:02:59]}  Bxc5 {[%clk 0:02:51]} 6. Bxc5 {[%clk 0:02:59]}  Nxc5 {[%clk 0:02:51]} 7. g3 {[%clk 0:02:59]}  b6 {[%clk 0:02:44]} 8. Bg2 {[%clk 0:02:59]}  Bb7 {[%clk 0:02:44]} 9. Nf3 {[%clk 0:02:58]}  O-O {[%clk 0:02:43]} 10. O-O {[%clk 0:02:58]}  d5 {[%clk 0:02:44]} 11. cxd5 {[%clk 0:02:57]}  Nxd5 {[%clk 0:02:45]} 12. Nxd5 {[%clk 0:02:55]}  Bxd5 {[%clk 0:02:45]} 13. Qd4 {[%clk 0:02:54]}  Rc8 {[%clk 0:02:40]} 14. Rfd1 {[%clk 0:02:53]}  Qe7 {[%clk 0:02:40]} 15. Qf4 {[%clk 0:02:34]}  h6 {[%clk 0:02:34]} 16. h4 {[%clk 0:02:29]}  Rfd8 {[%clk 0:02:31]} 17. Rd4 {[%clk 0:02:27]}  Bxf3 {[%clk 0:02:26]} 18. Bxf3 {[%clk 0:02:26]}  Rxd4 {[%clk 0:02:25]} 19. Qxd4 {[%clk 0:02:26]}  Rd8 {[%clk 0:02:26]} 20. Qe3 {[%clk 0:02:26]}  Qf6 {[%clk 0:02:13]} 21. Rb1 {[%clk 0:02:23]}  Qf5 {[%clk 0:02:09]} 22. Rc1 {[%clk 0:02:23]}  Qf6 {[%clk 0:01:59]} 23. b4 {[%clk 0:02:21]}  Nd7 {[%clk 0:01:49]} 24. Rc7 {[%clk 0:02:12]}  Ne5 {[%clk 0:01:45]} 25. Rxa7 {[%clk 0:02:10]}  Rd1+ {[%clk 0:01:39]} 26. Kg2 {[%clk 0:02:03]}  Nxf3 {[%clk 0:01:37]} 27. Qxf3 {[%clk 0:02:01]}  Qxf3+ {[%clk 0:01:07]} 28. Kxf3 {[%clk 0:01:59]}  Rb1 {[%clk 0:01:06]} 29. a3 {[%clk 0:01:58]}  f6 {[%clk 0:01:02]} 30. h5 {[%clk 0:01:56]}  Kf8 {[%clk 0:00:56]} 31. Ra6 {[%clk 0:01:54]}  e5 {[%clk 0:00:49]} 32. e3 {[%clk 0:01:53]}  Rb3 {[%clk 0:00:45]} 33. Ke4 {[%clk 0:01:51]}  Kf7 {[%clk 0:00:34]} 34. Ra7+ {[%clk 0:01:47]}  Ke6 {[%clk 0:00:30]} 35. g4 {[%clk 0:01:46]}  Rb2 {[%clk 0:00:24]} 36. f3 {[%clk 0:01:42]}  Ra2 {[%clk 0:00:21]} 37. Rxg7 {[%clk 0:01:37]}  Rxa3 {[%clk 0:00:21]} 38. Rb7 {[%clk 0:01:38]}  Rb3 {[%clk 0:00:16]} 39. Rxb6+ {[%clk 0:01:38]}  Kf7 {[%clk 0:00:16]} 40. b5 {[%clk 0:01:33]}  Ke7 {[%clk 0:00:16]} 41. f4 {[%clk 0:01:30]}  exf4 {[%clk 0:00:14]} 42. exf4 {[%clk 0:01:31]}  Rg3 {[%clk 0:00:14]} 43. Kf5 {[%clk 0:01:31]}  Rd3 {[%clk 0:00:13]} 44. Re6+ {[%clk 0:01:30]}  Kd7 {[%clk 0:00:13]} 45. Rxf6 {[%clk 0:01:30]}  Rd5+ {[%clk 0:00:13]} 46. Kg6 {[%clk 0:01:30]}  Rxb5 {[%clk 0:00:14]} 47. Kxh6 {[%clk 0:01:30]}  Ke7 {[%clk 0:00:15]} 48. Kg6 {[%clk 0:01:31]}  Rb8 {[%clk 0:00:13]} 49. g5 {[%clk 0:01:31]}  Rg8+ {[%clk 0:00:14]} 50. Kf5 {[%clk 0:01:32]}  Rh8 {[%clk 0:00:15]} 51. h6 {[%clk 0:01:32]}  Rb8 {[%clk 0:00:15]} 52. Ra6 {[%clk 0:01:31]}  Rb5+ {[%clk 0:00:16]} 53. Kg6 {[%clk 0:01:32]}  Kf8 {[%clk 0:00:16]} 54. f5 {[%clk 0:01:30]}  Rb8 {[%clk 0:00:15]} 55. f6 {[%clk 0:01:30]}  Kg8 {[%clk 0:00:14]} 56. Re6 {[%clk 0:01:24]}  Kh8 {[%clk 0:00:14]} 57. f7 {[%clk 0:01:15]}  Rb6 {[%clk 0:00:15]} 58. f8=Q# {[%clk 0:01:16]} 1-0


[Site "https://www.chess.com"]

[Event "Titled Tuesday Blitz May 30 Early 2023"]
[White "LangesNasenhaar"]
[Black "MaryanKyrychenko"]
[WhiteElo "2490"]
[BlackElo "2621"]
[Result "1/2-1/2"]
[Round "11"]
[TimeControl "180+2"]
[Date "2023.05.30"]
[WhiteClock "0:00:06"]
[BlackClock "0:00:20"]

1. d4 {[%clk 0:03:00]}  a6 {[%clk 0:02:52]} 2. Nc3 {[%clk 0:03:01]}  b5 {[%clk 0:02:52]} 3. Bf4 {[%clk 0:02:58]}  Bb7 {[%clk 0:02:52]} 4. a3 {[%clk 0:02:54]}  h6 {[%clk 0:02:51]} 5. e4 {[%clk 0:02:54]}  g5 {[%clk 0:02:51]} 6. Be3 {[%clk 0:02:52]}  Bg7 {[%clk 0:02:51]} 7. h4 {[%clk 0:02:49]}  gxh4 {[%clk 0:02:42]} 8. Rxh4 {[%clk 0:02:49]}  Nf6 {[%clk 0:02:41]} 9. f3 {[%clk 0:02:40]}  e6 {[%clk 0:02:37]} 10. Rh1 {[%clk 0:02:34]}  Nc6 {[%clk 0:02:34]} 11. Qd2 {[%clk 0:02:34]}  Qe7 {[%clk 0:02:32]} 12. O-O-O {[%clk 0:02:31]}  O-O-O {[%clk 0:02:32]} 13. Bxh6 {[%clk 0:02:28]}  Rxh6 {[%clk 0:02:02]} 14. Rxh6 {[%clk 0:02:26]}  Nxd4 {[%clk 0:02:01]} 15. Qxd4 {[%clk 0:02:12]}  Bxh6+ {[%clk 0:02:01]} 16. Kb1 {[%clk 0:02:13]}  c5 {[%clk 0:01:56]} 17. Qf2 {[%clk 0:02:05]}  d5 {[%clk 0:01:55]} 18. Qh4 {[%clk 0:01:58]}  Bg7 {[%clk 0:01:40]} 19. Qg5 {[%clk 0:01:31]}  Qf8 {[%clk 0:01:26]} 20. exd5 {[%clk 0:01:01]}  Nxd5 {[%clk 0:01:20]} 21. Nxd5 {[%clk 0:01:01]}  Rxd5 {[%clk 0:01:17]} 22. Rxd5 {[%clk 0:01:01]}  Bxd5 {[%clk 0:01:18]} 23. Ne2 {[%clk 0:00:43]}  Qh8 {[%clk 0:01:13]} 24. c3 {[%clk 0:00:41]}  Bf6 {[%clk 0:01:07]} 25. Qf4 {[%clk 0:00:37]}  Be5 {[%clk 0:01:00]} 26. Qe3 {[%clk 0:00:35]}  f6 {[%clk 0:00:53]} 27. Qxc5+ {[%clk 0:00:31]}  Kd7 {[%clk 0:00:51]} 28. Nc1 {[%clk 0:00:07]}  Qh1 {[%clk 0:00:34]} 29. Qf2 {[%clk 0:00:07]}  Bf4 {[%clk 0:00:31]} 30. Ne2 {[%clk 0:00:07]}  Bc4 {[%clk 0:00:18]} 31. Kc2 {[%clk 0:00:04]}  Be3 {[%clk 0:00:17]} 32. Qxe3 {[%clk 0:00:04]}  Qxf1 {[%clk 0:00:17]} 33. Qd2+ {[%clk 0:00:04]}  Ke7 {[%clk 0:00:17]} 34. Nd4 {[%clk 0:00:05]}  e5 {[%clk 0:00:17]} 35. Nc6+ {[%clk 0:00:04]}  Kf7 {[%clk 0:00:17]} 36. Nb4 {[%clk 0:00:05]}  a5 {[%clk 0:00:17]} 37. Qd7+ {[%clk 0:00:05]}  Kg6 {[%clk 0:00:17]} 38. Qg4+ {[%clk 0:00:05]}  Kh6 {[%clk 0:00:18]} 39. Qh4+ {[%clk 0:00:06]}  Kg6 {[%clk 0:00:18]} 40. Qg4+ {[%clk 0:00:06]}  Kf7 {[%clk 0:00:19]} 41. Qd7+ {[%clk 0:00:07]}  Kg8 {[%clk 0:00:19]} 42. Qg4+ {[%clk 0:00:05]}  Kf8 {[%clk 0:00:19]} 43. Qc8+ {[%clk 0:00:05]}  Kg7 {[%clk 0:00:19]} 44. Qg4+ {[%clk 0:00:05]}  Kh8 {[%clk 0:00:19]} 45. Qh5+ {[%clk 0:00:05]}  Kg7 {[%clk 0:00:19]} 46. Qg4+ {[%clk 0:00:06]}  Kf7 {[%clk 0:00:20]} 47. Qd7+ {[%clk 0:00:06]} 1/2-1/2


[Site "https://www.chess.com"]

[Event "Titled Tuesday Blitz May 30 Early 2023"]
[White "Fan_Of_Chucky"]
[Black "SashaKuzhilniy"]
[WhiteElo "2466"]
[BlackElo "2617"]
[Result "1-0"]
[Round "11"]
[TimeControl "180+2"]
[Date "2023.05.30"]
[WhiteClock "0:00:09"]
[BlackClock "0:00:16"]

1. d4 {[%clk 0:02:56]}  Nf6 {[%clk 0:02:56]} 2. c4 {[%clk 0:02:57]}  e6 {[%clk 0:02:57]} 3. Nf3 {[%clk 0:02:57]}  d5 {[%clk 0:02:56]} 4. g3 {[%clk 0:02:56]}  c6 {[%clk 0:02:55]} 5. Bg2 {[%clk 0:02:56]}  dxc4 {[%clk 0:02:54]} 6. Ne5 {[%clk 0:02:56]}  b5 {[%clk 0:02:44]} 7. Nxc6 {[%clk 0:02:54]}  Nxc6 {[%clk 0:02:45]} 8. Bxc6+ {[%clk 0:02:54]}  Bd7 {[%clk 0:02:46]} 9. Bxa8 {[%clk 0:02:55]}  Qxa8 {[%clk 0:02:46]} 10. O-O {[%clk 0:02:55]}  Be7 {[%clk 0:02:45]} 11. f3 {[%clk 0:02:49]}  O-O {[%clk 0:02:45]} 12. e4 {[%clk 0:02:49]}  Rd8 {[%clk 0:02:45]} 13. Be3 {[%clk 0:02:46]}  Bc6 {[%clk 0:02:45]} 14. Qe2 {[%clk 0:02:45]}  a5 {[%clk 0:02:38]} 15. Nd2 {[%clk 0:02:33]}  Bb4 {[%clk 0:02:27]} 16. a4 {[%clk 0:02:14]}  Bxd2 {[%clk 0:02:14]} 17. Bxd2 {[%clk 0:02:11]}  Rxd4 {[%clk 0:02:13]} 18. axb5 {[%clk 0:02:11]}  Bxb5 {[%clk 0:02:13]} 19. Rxa5 {[%clk 0:02:08]}  Qc6 {[%clk 0:02:13]} 20. Be3 {[%clk 0:01:56]}  Rd3 {[%clk 0:02:12]} 21. Rd1 {[%clk 0:01:33]}  h5 {[%clk 0:02:05]} 22. Rxd3 {[%clk 0:01:13]}  cxd3 {[%clk 0:02:06]} 23. Qd2 {[%clk 0:01:13]}  h4 {[%clk 0:01:59]} 24. Bg5 {[%clk 0:01:02]}  Qb6+ {[%clk 0:01:58]} 25. Kg2 {[%clk 0:00:54]}  hxg3 {[%clk 0:01:54]} 26. Bxf6 {[%clk 0:00:25]}  gxh2 {[%clk 0:01:51]} 27. Kxh2 {[%clk 0:00:26]}  gxf6 {[%clk 0:01:48]} 28. Ra8+ {[%clk 0:00:25]}  Kh7 {[%clk 0:01:48]} 29. Qg2 {[%clk 0:00:17]}  d2 {[%clk 0:00:17]} 30. Qh3+ {[%clk 0:00:11]}  Kg7 {[%clk 0:00:15]} 31. Qh8+ {[%clk 0:00:08]}  Kg6 {[%clk 0:00:16]} 32. Rg8# {[%clk 0:00:09]} 1-0


[Site "https://www.chess.com"]

[Event "Titled Tuesday Blitz May 30 Early 2023"]
[White "Grave, Jacob Templen"]
[Black "MKlose11"]
[WhiteFideId "1542656"]
[WhiteElo "2189"]
[BlackElo "2603"]
[Result "1/2-1/2"]
[Round "11"]
[TimeControl "180+2"]
[Date "2023.05.30"]
[WhiteClock "0:00:11"]
[BlackClock "0:01:05"]

1. e4 {[%clk 0:03:00]}  e6 {[%clk 0:02:59]} 2. d3 {[%clk 0:02:56]}  d5 {[%clk 0:03:00]} 3. Nd2 {[%clk 0:02:56]}  Nf6 {[%clk 0:02:59]} 4. Ngf3 {[%clk 0:02:55]}  b6 {[%clk 0:02:59]} 5. g3 {[%clk 0:02:45]}  Be7 {[%clk 0:02:56]} 6. Bg2 {[%clk 0:02:45]}  dxe4 {[%clk 0:02:57]} 7. Ng5 {[%clk 0:02:35]}  Bb7 {[%clk 0:02:54]} 8. Ngxe4 {[%clk 0:02:34]}  Nxe4 {[%clk 0:02:54]} 9. Nxe4 {[%clk 0:02:31]}  Qc8 {[%clk 0:02:54]} 10. O-O {[%clk 0:02:30]}  Nd7 {[%clk 0:02:54]} 11. Qg4 {[%clk 0:02:06]}  g6 {[%clk 0:02:46]} 12. Qe2 {[%clk 0:02:02]}  O-O {[%clk 0:02:43]} 13. h4 {[%clk 0:01:54]}  Nf6 {[%clk 0:02:38]} 14. Bg5 {[%clk 0:01:48]}  Nxe4 {[%clk 0:02:32]} 15. Bxe7 {[%clk 0:01:42]}  Re8 {[%clk 0:02:31]} 16. Bb4 {[%clk 0:01:40]}  Nf6 {[%clk 0:02:25]} 17. Qe5 {[%clk 0:01:31]}  Nd7 {[%clk 0:02:18]} 18. Qe3 {[%clk 0:01:26]}  Bxg2 {[%clk 0:02:18]} 19. Kxg2 {[%clk 0:01:26]}  Qb7+ {[%clk 0:02:18]} 20. Kh2 {[%clk 0:01:26]}  Nf6 {[%clk 0:02:17]} 21. Qg5 {[%clk 0:01:18]}  Nd5 {[%clk 0:02:13]} 22. Bd2 {[%clk 0:01:15]}  Qc6 {[%clk 0:02:11]} 23. c4 {[%clk 0:01:12]}  Ne7 {[%clk 0:01:58]} 24. Bc3 {[%clk 0:01:11]}  Qd6 {[%clk 0:01:41]} 25. Qf6 {[%clk 0:00:57]}  e5 {[%clk 0:01:41]} 26. Bxe5 {[%clk 0:00:52]}  Qxf6 {[%clk 0:01:40]} 27. Bxf6 {[%clk 0:00:53]}  Nc6 {[%clk 0:01:36]} 28. Rfe1 {[%clk 0:00:51]}  Re6 {[%clk 0:01:36]} 29. Bc3 {[%clk 0:00:36]}  Rae8 {[%clk 0:01:35]} 30. Kg2 {[%clk 0:00:36]}  Rxe1 {[%clk 0:01:33]} 31. Rxe1 {[%clk 0:00:37]}  Rxe1 {[%clk 0:01:33]} 32. Bxe1 {[%clk 0:00:35]}  Ne5 {[%clk 0:01:34]} 33. Bc3 {[%clk 0:00:25]}  Nxd3 {[%clk 0:01:34]} 34. b4 {[%clk 0:00:18]}  f5 {[%clk 0:01:27]} 35. Kf3 {[%clk 0:00:14]}  Kf7 {[%clk 0:01:27]} 36. Ke3 {[%clk 0:00:12]}  Nc1 {[%clk 0:01:27]} 37. a4 {[%clk 0:00:05]}  Nb3 {[%clk 0:01:18]} 38. Kd3 {[%clk 0:00:04]}  c5 {[%clk 0:01:15]} 39. b5 {[%clk 0:00:03]}  Ke6 {[%clk 0:01:08]} 40. Kc2 {[%clk 0:00:03]}  Na5 {[%clk 0:01:08]} 41. Bxa5 {[%clk 0:00:02]}  bxa5 {[%clk 0:01:08]} 42. Kd3 {[%clk 0:00:02]}  h6 {[%clk 0:01:01]} 43. Ke3 {[%clk 0:00:03]}  g5 {[%clk 0:00:58]} 44. hxg5 {[%clk 0:00:04]}  hxg5 {[%clk 0:00:59]} 45. f3 {[%clk 0:00:03]}  Kf6 {[%clk 0:00:58]} 46. f4 {[%clk 0:00:02]}  g4 {[%clk 0:00:54]} 47. Ke2 {[%clk 0:00:02]}  Ke6 {[%clk 0:00:54]} 48. Ke3 {[%clk 0:00:02]}  Kd7 {[%clk 0:00:55]} 49. Ke2 {[%clk 0:00:03]}  Kc7 {[%clk 0:00:56]} 50. Kd3 {[%clk 0:00:04]}  Kb6 {[%clk 0:00:57]} 51. Kc3 {[%clk 0:00:05]}  a6 {[%clk 0:00:57]} 52. Kb3 {[%clk 0:00:05]}  Kb7 {[%clk 0:00:58]} 53. Kc3 {[%clk 0:00:05]}  Ka7 {[%clk 0:00:59]} 54. bxa6 {[%clk 0:00:05]}  Kb6 {[%clk 0:01:00]} 55. Kb3 {[%clk 0:00:06]}  Kxa6 {[%clk 0:01:01]} 56. Kc3 {[%clk 0:00:07]}  Kb7 {[%clk 0:01:02]} 57. Kb3 {[%clk 0:00:08]}  Kc6 {[%clk 0:01:02]} 58. Kc3 {[%clk 0:00:09]}  Kd6 {[%clk 0:01:03]} 59. Kd3 {[%clk 0:00:10]}  Kc6 {[%clk 0:01:04]} 60. Ke3 {[%clk 0:00:10]}  Kd7 {[%clk 0:01:05]} 61. Kd3 {[%clk 0:00:11]}  Kd6 {[%clk 0:01:06]} 62. Kc3 {[%clk 0:00:11]}  Kc6 {[%clk 0:01:05]} 1/2-1/2


[Site "https://www.chess.com"]